fUSD/lending_fUSD_20240209
["ID","MTS","AMOUNT","RATE_DAILY","PERIOD"]
[313621098,1707487148420,-500.0,0.00041095,31]
[313621099,1707487148444,-500.0,0.00041095,31]
[313621100,1707487148466,-500.0,0.00041095,31]
[313621101,1707487148491,-500.0,0.00041095,31]
[313621102,1707487148513,-513.45879092,0.00041095,31]
[313621103,1707487148537,-650.82,0.00041095,31]
[313621104,1707487148565,-500.0,0.00041095,31]
[313621105,1707487148587,-500.0,0.00041095,31]
[313621106,1707487148610,-608.25124653,0.00041095,31]
[313621107,1707487148633,-500.0,0.00041095,31]
[313621108,1707487148655,-500.0,0.00041095,31]
[313621109,1707487148678,-500.0,0.00041095,31]
[313621110,1707487148701,-500.0,0.00041095,31]
[313621111,1707487148723,-500.0,0.00041095,31]
[313621112,1707487148747,-500.0,0.00041095,31]
[313621113,1707487148770,-500.0,0.00041095,31]
[313621114,1707487148793,-500.0,0.00041095,31]
[313621115,1707487148817,-500.0,0.00041095,31]
[313621116,1707487148845,-500.0,0.00041095,31]
[313621117,1707487148870,-552.96628032,0.00041095,31]
[313621118,1707487148894,-567.32412449,0.00041095,31]
[313621119,1707487148918,-500.0,0.00041095,31]
[313621120,1707487148942,-500.0,0.00041095,31]
[313621121,1707487148965,-551.93814236,0.00041095,31]
[313621122,1707487148989,-500.0,0.00041095,31]
[313621123,1707487149012,-221.36406162,0.00041095,31]
[313621124,1707487149034,-502.98121652,0.00041095,31]
[313621125,1707487149057,-2937.23,0.00041095,31]
[313621126,1707487149082,-500.0,0.00041095,31]
[313621127,1707487149105,-500.0,0.00041095,31]
[313621128,1707487149134,-500.0,0.00041095,31]
[313621129,1707487149157,-500.0,0.00041095,31]
[313621130,1707487149181,-500.0,0.00041095,31]
[313621131,1707487149204,-500.0,0.00041095,31]
[313621132,1707487149227,-508.58037076,0.00041095,31]
[313621133,1707487149252,-500.0,0.00041095,31]
[313621134,1707487149274,-508.35231496,0.00041095,31]
[313621135,1707487149297,-500.0,0.00041095,31]
[313621136,1707487149321,-500.0,0.00041095,31]
[313621137,1707487149344,-500.0,0.00041095,31]
[313621138,1707487149368,-511.2529416,0.00041095,31]
[313621139,1707487149391,-510.08390971,0.00041095,31]
[313621140,1707487149416,-500.0,0.00041095,31]
[313621141,1707487149439,-500.0,0.00041095,31]
[313621142,1707487149463,-500.0,0.00041095,31]
[313621143,1707487149486,-500.0,0.00041095,31]
[313621144,1707487149510,-509.43243381,0.00041095,31]
[313621145,1707487149534,-500.0,0.00041095,31]
[313621146,1707487149557,-232.43769943,0.00041095,31]
[313621147,1707487149581,-500.0,0.00041095,31]
[313621148,1707487149604,-703.51,0.00041095,31]
[313621149,1707487149627,-569.08,0.00041095,31]
[313621150,1707487149650,-500.0,0.00041095,31]
[313621151,1707487149673,-500.0,0.00041095,31]
[313621152,1707487149696,-500.0,0.00041095,31]
[313621153,1707487149718,-500.0,0.00041095,31]
[313621154,1707487149742,-299.13109043,0.00041095,31]
[313621155,1707487149766,-500.0,0.00041095,31]
[313621156,1707487149791,-500.0,0.00041095,31]
[313621157,1707487149815,-500.0,0.00041095,31]
[313621158,1707487149838,-500.0,0.00041095,31]
[313621159,1707487149861,-500.0,0.00041095,31]
[313621160,1707487149885,-500.0,0.00041095,31]
[313621161,1707487149908,-667.56,0.00041095,31]
[313621162,1707487149931,-500.0,0.00041095,31]
[313621163,1707487149954,-500.0,0.00041095,31]
[313621164,1707487149978,-500.0,0.00041095,31]
[313621165,1707487150001,-500.0,0.00041095,31]
[313621166,1707487150025,-500.0,0.00041095,31]
[313621167,1707487150059,-500.0,0.00041095,31]
[313621168,1707487150085,-500.0,0.00041095,31]
[313621169,1707487150110,-500.0,0.00041095,31]
[313621170,1707487150134,-648.57696516,0.00041095,31]
[313621171,1707487150158,-500.0,0.00041095,31]
[313621172,1707487150183,-500.0,0.00041095,31]
[313621173,1707487150382,-500.0,0.00041095,31]
[313621174,1707487150407,-500.0,0.00041095,31]
[313621175,1707487150432,-500.0,0.00041095,31]
[313621176,1707487150456,-500.0,0.00041095,31]
[313621177,1707487150480,-500.0,0.00041095,31]
[313621178,1707487150506,-500.0,0.00041095,31]
[313621179,1707487150531,-500.0,0.00041095,31]
[313621180,1707487150556,-500.0,0.00041095,31]
[313621181,1707487150580,-514.46709881,0.00041095,31]
[313621182,1707487150604,-500.0,0.00041095,31]
[313621183,1707487150628,-500.0,0.00041095,31]
[313621184,1707487150651,-500.0,0.00041095,31]
[313621185,1707487150677,-500.0,0.00041095,31]
[313621186,1707487150711,-500.0,0.00041095,31]
[313621187,1707487150736,-500.0,0.00041095,31]
[313621188,1707487150765,-500.0,0.00041095,31]
[313621189,1707487150792,-500.0,0.00041095,31]
[313621190,1707487150820,-548.03316048,0.00041095,31]
[313621191,1707487150847,-500.0,0.00041095,31]
[313621192,1707487150874,-500.0,0.00041095,31]
[313621193,1707487150900,-500.0,0.00041095,31]
[313621194,1707487150931,-500.0,0.00041095,31]
[313621195,1707487150957,-500.0,0.00041095,31]
[313621196,1707487150982,-500.0,0.00041095,31]
[313621197,1707487151014,-500.0,0.00041095,31]
[313621198,1707487151040,-500.0,0.00041095,31]
[313621199,1707487151066,-500.0,0.00041095,31]
[313621200,1707487151095,-500.0,0.00041095,31]
[313621201,1707487151120,-500.0,0.00041095,31]
[313621202,1707487151144,-500.0,0.00041095,31]
[313621203,1707487151171,-500.0,0.00041095,31]
[313621204,1707487151195,-500.0,0.00041095,31]
[313621205,1707487151219,-500.0,0.00041095,31]
[313621206,1707487151248,-500.0,0.00041095,31]
[313621207,1707487151273,-527.14043642,0.00041095,31]
[313621208,1707487151298,-500.0,0.00041095,31]
[313621209,1707487151323,-538.74,0.00041095,31]
[313621210,1707487151347,-500.0,0.00041095,31]
[313621211,1707487151371,-500.0,0.00041095,31]
[313621212,1707487151396,-500.0,0.00041095,31]
[313621213,1707487151420,-500.0,0.00041095,31]
[313621214,1707487151444,-500.0,0.00041095,31]
[313621215,1707487151468,-500.0,0.00041095,31]
[313621216,1707487151496,-500.0,0.00041095,31]
[313621217,1707487151520,-500.0,0.00041095,31]
[313621218,1707487151543,-500.0,0.00041095,31]
[313621219,1707487151567,-500.0,0.00041095,31]
[313621220,1707487151591,-500.0,0.00041095,31]
[313621221,1707487151616,-500.0,0.00041095,31]
[313621222,1707487151642,-500.0,0.00041095,31]
[313621223,1707487151667,-500.0,0.00041095,31]
[313621224,1707487151692,-500.0,0.00041095,31]
[313621225,1707487151716,-500.0,0.00041095,31]
[313621226,1707487151743,-500.0,0.00041095,31]
[313621227,1707487151768,-500.0,0.00041095,31]
[313621228,1707487151792,-374.9,0.00041095,31]
[313621229,1707487151816,-500.0,0.00041095,31]
[313621230,1707487151840,-500.0,0.00041095,31]
[313621231,1707487151865,-791.57,0.00041095,31]
[313621232,1707487151889,-299.75260746,0.00041095,31]
[313621233,1707487151914,-500.0,0.00041095,31]
[313621234,1707487151939,-514.45,0.00041095,31]
[313621235,1707487151965,-500.0,0.00041095,31]
[313621236,1707487151992,-500.0,0.00041095,31]
[313621237,1707487152017,-500.0,0.00041095,31]
[313621238,1707487152041,-500.0,0.00041095,31]
[313621239,1707487152066,-500.0,0.00041095,31]
[313621240,1707487152093,-500.0,0.00041095,31]
[313621241,1707487152118,-500.0,0.00041095,31]
[313621242,1707487152142,-500.0,0.00041095,31]
[313621243,1707487152168,-500.0,0.00041095,31]
[313621244,1707487152192,-500.0,0.00041095,31]
[313621245,1707487152216,-500.0,0.00041095,31]
[313621246,1707487152242,-500.0,0.00041095,31]
[313621247,1707487152267,-510.35272471,0.00041095,31]
[313621248,1707487152291,-513.89492778,0.00041095,31]
[313621249,1707487152314,-500.0,0.00041095,31]
[313621250,1707487152338,-500.0,0.00041095,31]
[313621251,1707487152360,-500.0,0.00041095,31]
[313621252,1707487152384,-500.0,0.00041095,31]
[313621253,1707487152408,-500.0,0.00041095,31]
[313621254,1707487152431,-258.11966879,0.00041095,31]
[313621255,1707487152455,-150.0,0.00041095,31]
[313621256,1707487152478,-500.0,0.00041095,31]
[313621257,1707487152505,-500.0,0.00041095,31]
[313621258,1707487152529,-882.64,0.00041095,31]
[313621259,1707487152553,-500.0,0.00041095,31]
[313621260,1707487152579,-500.0,0.00041095,31]
[313621261,1707487152603,-500.0,0.00041095,31]
[313621262,1707487152626,-500.0,0.00041095,31]
[313621263,1707487152649,-500.0,0.00041095,31]
[313621264,1707487152672,-500.0,0.00041095,31]
[313621265,1707487152696,-604.11260183,0.00041095,31]
[313621266,1707487152720,-500.0,0.00041095,31]
[313621267,1707487152747,-500.0,0.00041095,31]
[313621268,1707487152771,-500.0,0.00041095,31]
[313621269,1707487152794,-500.0,0.00041095,31]
[313621270,1707487152818,-500.0,0.00041095,31]
[313621271,1707487152842,-500.0,0.00041095,31]
[313621272,1707487152866,-500.0,0.00041095,31]
[313621273,1707487152890,-500.0,0.00041095,31]
[313621274,1707487152913,-534.39,0.00041095,31]
[313621275,1707487152938,-500.0,0.00041095,31]
[313621276,1707487152961,-500.0,0.00041095,31]
[313621277,1707487152985,-500.0,0.00041095,31]
[313621278,1707487153175,-500.0,0.00041095,31]
[313621279,1707487153199,-500.0,0.00041095,31]
[313621280,1707487153222,-500.0,0.00041095,31]
[313621281,1707487153246,-654.43,0.00041095,31]
[313621282,1707487153270,-500.0,0.00041095,31]
[313621283,1707487153294,-500.0,0.00041095,31]
[313621284,1707487153318,-500.0,0.00041095,31]
[313621285,1707487153342,-500.0,0.00041095,31]
[313621286,1707487153366,-500.0,0.00041095,31]
[313621287,1707487153390,-503.59,0.00041095,31]
[313621288,1707487153415,-1696.77,0.00041095,31]
[313621289,1707487153438,-500.0,0.00041095,31]
[313621290,1707487153461,-500.0,0.00041095,31]
[313621291,1707487153486,-7956.28,0.00041095,31]
[313621292,1707487153512,-500.0,0.00041095,31]
[313621293,1707487153535,-500.0,0.00041095,30]
[313621294,1707487153560,-500.0,0.00041095,31]
[313621295,1707487153583,-500.0,0.00041095,31]
[313621296,1707487153606,-500.0,0.00041095,31]
[313621297,1707487153629,-500.0,0.00041095,31]
[313621298,1707487153653,-500.0,0.00041095,31]
[313621299,1707487153676,-275.18586325,0.00041095,31]
[313621300,1707487153699,-500.0,0.00041095,31]
[313621301,1707487153723,-654.99,0.00041095,31]
[313621302,1707487153747,-500.0,0.00041095,31]
[313621303,1707487153771,-669.29,0.00041095,31]
[313621304,1707487153795,-500.0,0.00041095,31]
[313621305,1707487153819,-1000.11,0.00041095,31]
[313621306,1707487153843,-500.0,0.00041095,31]
[313621307,1707487153868,-500.0,0.00041095,31]
[313621308,1707487153892,-500.0,0.00041095,31]
[313621309,1707487153915,-500.0,0.00041095,31]
[313621310,1707487153941,-1127.0,0.00041095,31]
[313621311,1707487153965,-500.0,0.00041095,31]
[313621312,1707487153989,-536.28,0.00041095,31]
[313621313,1707487154012,-507.65345718,0.00041095,31]
[313621314,1707487154036,-556.45,0.00041095,31]
[313621315,1707487154061,-20192.2,0.00041095,31]
[313621316,1707487154088,-500.0,0.00041095,31]
[313621317,1707487154112,-500.0,0.00041095,31]
[313621318,1707487154135,-500.0,0.00041095,31]
[313621319,1707487154160,-500.0,0.00041095,31]
[313621320,1707487154185,-500.0,0.00041095,31]
[313621321,1707487154209,-500.0,0.00041095,31]
[313621322,1707487154234,-500.0,0.00041095,31]
[313621323,1707487154260,-793.37,0.00041095,31]
[313621324,1707487154285,-500.0,0.00041095,31]
[313621325,1707487154309,-1541.64,0.00041095,31]
[313621326,1707487154333,-500.0,0.00041095,31]
[313621327,1707487154357,-500.0,0.00041095,31]
[313621328,1707487154383,-3437.21,0.00041095,31]
[313621329,1707487154407,-500.0,0.00041095,31]
[313621330,1707487154431,-500.0,0.00041095,31]
[313621331,1707487154455,-500.0,0.00041095,31]
[313621332,1707487154480,-1332.18,0.00041095,31]
[313621333,1707487154506,-2687.51,0.00041095,31]
[313621334,1707487154530,-504.84,0.00041095,31]
[313621335,1707487154554,-548.89,0.00041095,31]
[313621336,1707487154579,-500.0,0.00041095,31]
[313621337,1707487154604,-500.0,0.00041095,31]
[313621338,1707487154627,-767.91,0.00041095,31]
[313621339,1707487154651,-30778.37,0.00041095,31]
[313621340,1707487154675,-2416.82,0.00041095,31]
[313621341,1707487154699,-500.0,0.00041095,31]
[313621342,1707487154722,-675.64,0.00041095,31]
[313621343,1707487154746,-500.0,0.00041095,31]
[313621344,1707487154769,-500.0,0.00041095,31]
[313621345,1707487154793,-500.0,0.00041095,31]
[313621346,1707487154816,-500.0,0.00041095,31]
[313621347,1707487154840,-6300.17,0.00041095,31]
[313621348,1707487154864,-500.0,0.00041095,31]
[313621349,1707487154887,-566.47,0.00041095,31]
[313621350,1707487154911,-2484.77,0.00041095,31]
[313621351,1707487154935,-1767.38,0.00041095,31]
[313621352,1707487154960,-500.0,0.00041095,31]
[313621353,1707487154985,-500.0,0.00041095,31]
[313621354,1707487155009,-959.36,0.00041095,31]
[313621355,1707487155032,-500.0,0.00041095,31]
[313621356,1707487155056,-500.0,0.00041095,31]
[313621357,1707487155080,-500.0,0.00041095,30]
[313621358,1707487155106,-500.0,0.00041095,31]
[313621359,1707487155130,-1412.06,0.00041095,31]
[313621360,1707487155153,-500.0,0.00041095,31]
[313621361,1707487155179,-500.0,0.00041095,31]
[313621362,1707487155209,-1063.18,0.00041095,31]
[313621363,1707487155232,-500.0,0.00041095,31]
[313621364,1707487155258,-2178.75,0.00041095,31]
[313621365,1707487155282,-510.71166464,0.00041095,31]
[313621366,1707487155305,-500.0,0.00041095,31]
[313621367,1707487155329,-500.0,0.00041095,31]
[313621368,1707487155355,-500.0,0.00041095,31]
[313621369,1707487155379,-500.0,0.00041095,31]
[313621370,1707487155403,-1045.03,0.00041095,31]
[313621371,1707487155428,-906.86,0.00041095,31]
[313621372,1707487155452,-500.0,0.00041095,31]
[313621373,1707487155476,-3115.29,0.00041095,31]
[313621374,1707487155501,-500.0,0.00041095,31]
[313621375,1707487155525,-500.0,0.00041095,31]
[313621376,1707487155549,-500.0,0.00041095,31]
[313621377,1707487155572,-500.0,0.00041095,31]
[313621378,1707487155596,-2930.12,0.00041095,31]
[313621379,1707487155620,-540.08,0.00041095,31]
[313621380,1707487155643,-177.15043311,0.00041095,31]
[313621381,1707487155667,-500.0,0.00041095,31]
[313621382,1707487155690,-1081.62,0.00041095,31]
[313621383,1707487155880,-518.84,0.00041095,31]
[313621384,1707487155906,-500.0,0.00041095,31]
[313621385,1707487155930,-1561.58,0.00041095,31]
[313621386,1707487155955,-518.42,0.00041095,31]
[313621387,1707487155986,-635.68,0.00041095,31]
[313621388,1707487156011,-916.0,0.00041095,31]
[313621389,1707487156034,-560.33573558,0.00041095,31]
[313621390,1707487156057,-500.0,0.00041095,31]
[313621391,1707487156084,-500.0,0.00041095,31]
[313621392,1707487156108,-500.0,0.00041095,31]
[313621393,1707487156132,-8148.69,0.00041095,31]
[313621394,1707487156156,-500.0,0.00041095,31]
[313621395,1707487156181,-500.0,0.00041095,31]
[313621396,1707487156205,-500.0,0.00041095,31]
[313621397,1707487156228,-792.43,0.00041095,31]
[313621398,1707487156252,-500.0,0.00041095,31]
[313621399,1707487156276,-500.0,0.00041095,31]
[313621400,1707487156299,-500.0,0.00041095,31]
[313621401,1707487156323,-500.0,0.00041095,31]
[313621402,1707487156347,-13299.26,0.00041095,31]
[313621403,1707487156371,-808.15,0.00041095,31]
[313621404,1707487156395,-562.48,0.00041095,31]
[313621405,1707487156421,-500.0,0.00041095,31]
[313621406,1707487156445,-2542.57,0.00041095,31]
[313621407,1707487156469,-500.0,0.00041095,31]
[313621408,1707487156493,-178.25351806,0.00041095,31]
[313621409,1707487156517,-1246.8,0.00041095,31]
[313621410,1707487156541,-500.0,0.00041095,31]
[313621411,1707487156565,-500.0,0.00041095,31]
[313621412,1707487156588,-647.08926711,0.00041095,31]
[313621413,1707487156611,-500.0,0.00041095,31]
[313621414,1707487156634,-776.48,0.00041095,31]
[313621415,1707487156657,-500.0,0.00041095,31]
[313621416,1707487156680,-500.0,0.00041095,31]
[313621417,1707487156703,-741.23,0.00041095,31]
[313621418,1707487156726,-698.48,0.00041095,31]
[313621419,1707487156749,-2162.48,0.00041095,31]
[313621420,1707487156773,-3129.95,0.00041095,31]
[313621421,1707487156798,-677.1,0.00041095,31]
[313621422,1707487156821,-500.0,0.00041095,31]
[313621423,1707487156843,-500.0,0.00041095,31]
[313621424,1707487156867,-1314.52,0.00041095,31]
[313621425,1707487156891,-1634.94,0.00041095,31]
[313621426,1707487156913,-500.0,0.00041095,31]
[313621427,1707487156937,-1064.38,0.00041095,31]
[313621428,1707487156960,-500.0,0.00041095,31]
[313621429,1707487156985,-1610.95,0.00041095,31]
[313621430,1707487157011,-500.0,0.00041095,31]
[313621431,1707487157034,-987.1,0.00041095,31]
[313621432,1707487157058,-500.0,0.00041095,31]
[313621433,1707487157083,-558.21,0.00041095,31]
[313621434,1707487157107,-500.0,0.00041095,31]
[313621435,1707487157131,-500.0,0.00041095,31]
[313621436,1707487157155,-500.0,0.00041095,31]
[313621437,1707487157179,-500.0,0.00041095,31]
[313621438,1707487157203,-1288.44,0.00041095,31]
[313621439,1707487157226,-923.0,0.00041095,31]
[313621440,1707487157250,-3513.3,0.00041095,31]
[313621441,1707487157274,-2977.12,0.00041095,31]
[313621442,1707487157298,-3585.81,0.00041095,31]
[313621443,1707487157321,-500.0,0.00041095,31]
[313621444,1707487157345,-4092.82,0.00041095,31]
[313621445,1707487157369,-1111.32,0.00041095,31]
[313621446,1707487157397,-500.0,0.00041095,31]
[313621447,1707487157421,-500.0,0.00041095,31]
[313621448,1707487157444,-500.0,0.00041095,31]
[313621449,1707487157468,-810.54,0.00041095,31]
[313621450,1707487157492,-500.0,0.00041095,31]
[313621451,1707487157516,-500.0,0.00041095,31]
[313621452,1707487157540,-1445.78,0.00041095,31]
[313621453,1707487157563,-500.0,0.00041095,31]
[313621454,1707487157586,-1968.03,0.00041095,31]
[313621455,1707487157609,-500.0,0.00041095,31]
[313621456,1707487157633,-2143.34,0.00041095,31]
[313621457,1707487157657,-500.0,0.00041095,31]
[313621458,1707487157680,-500.0,0.00041095,31]
[313621459,1707487157703,-842.81,0.00041095,31]
[313621460,1707487157727,-9829.63,0.00041095,31]
[313621461,1707487157750,-4396.32,0.00041095,31]
[313621462,1707487157773,-500.0,0.00041095,31]
[313621463,1707487157796,-500.0,0.00041095,31]
[313621464,1707487157819,-500.0,0.00041095,31]
[313621465,1707487157844,-1531.14,0.00041095,31]
[313621466,1707487157868,-500.0,0.00041095,31]
[313621467,1707487157892,-3098.41,0.00041095,31]
[313621468,1707487157914,-500.0,0.00041095,31]
[313621469,1707487157938,-500.0,0.00041095,31]
[313621470,1707487157961,-565.94507456,0.00041095,31]
[313621471,1707487157984,-3134.49,0.00041095,31]
[313621472,1707487158008,-500.0,0.00041095,31]
[313621473,1707487158031,-500.0,0.00041095,31]
[313621474,1707487158055,-500.0,0.00041095,31]
[313621475,1707487158082,-805.62,0.00041095,31]
[313621476,1707487158108,-500.0,0.00041095,31]
[313621477,1707487158138,-1285.67,0.00041095,31]
[313621478,1707487158163,-850.45,0.00041095,31]
[313621479,1707487158186,-1725.82,0.00041095,31]
[313621480,1707487158210,-1105.94,0.00041095,31]
[313621481,1707487158236,-500.0,0.00041095,31]
[313621482,1707487158260,-500.0,0.00041095,31]
[313621483,1707487158283,-555.42,0.00041095,31]
[313621484,1707487158307,-500.0,0.00041095,31]
[313621485,1707487158331,-370.03094706,0.00041095,31]
[313621486,1707487158521,-600.94,0.00041095,31]
[313621487,1707487158545,-500.0,0.00041095,31]
[313621488,1707487158569,-24179.07,0.00041095,31]
[313621489,1707487158595,-1181.34,0.00041095,31]
[313621490,1707487158623,-500.0,0.00041095,31]
[313621491,1707487158649,-1991.35,0.00041095,31]
[313621492,1707487158674,-500.0,0.00041095,31]
[313621493,1707487158697,-500.0,0.00041095,31]
[313621494,1707487158722,-609.11,0.00041095,31]
[313621495,1707487158749,-500.0,0.00041095,31]
[313621496,1707487158774,-2548.88,0.00041095,31]
[313621497,1707487158810,-500.0,0.00041095,31]
[313621498,1707487158834,-2801.13,0.00041095,31]
[313621499,1707487158858,-565.44,0.00041095,31]
[313621500,1707487158883,-804.55,0.00041095,31]
[313621501,1707487158907,-500.0,0.00041095,31]
[313621502,1707487158931,-500.0,0.00041095,31]
[313621503,1707487158954,-500.0,0.00041095,31]
[313621504,1707487158977,-500.0,0.00041095,31]
[313621505,1707487159002,-696.66,0.00041095,31]
[313621506,1707487159026,-500.0,0.00041095,31]
[313621507,1707487159050,-2278.6,0.00041095,31]
[313621508,1707487159088,-500.0,0.00041095,31]
[313621509,1707487159117,-594.14010254,0.00041095,31]
[313621510,1707487159143,-1670.47,0.00041095,31]
[313621511,1707487159168,-500.0,0.00041095,31]
[313621512,1707487159192,-500.0,0.00041095,31]
[313621513,1707487159217,-2437.96,0.00041095,31]
[313621514,1707487159242,-500.0,0.00041095,31]
[313621515,1707487159269,-885.62,0.00041095,31]
[313621516,1707487159293,-500.0,0.00041095,31]
[313621517,1707487159318,-500.0,0.00041095,31]
[313621518,1707487159343,-1332.36,0.00041095,31]
[313621519,1707487159369,-500.0,0.00041095,31]
[313621520,1707487159393,-500.0,0.00041095,31]
[313621521,1707487159418,-651.87,0.00041095,31]
[313621522,1707487159442,-969.78,0.00041095,31]
[313621523,1707487159468,-4470.0,0.00041095,31]
[313621524,1707487159493,-500.0,0.00041095,31]
[313621525,1707487159519,-1146.57,0.00041095,31]
[313621526,1707487159544,-500.0,0.00041095,31]
[313621527,1707487159569,-500.0,0.00041095,31]
[313621528,1707487159593,-500.0,0.00041095,31]
[313621529,1707487159617,-500.0,0.00041095,31]
[313621530,1707487159641,-462.13063265,0.00041095,31]
[313621531,1707487159665,-500.0,0.00041095,31]
[313621532,1707487159689,-1928.88,0.00041095,31]
[313621533,1707487159715,-500.0,0.00041095,31]
[313621534,1707487159740,-10078.95,0.00041095,31]
[313621535,1707487159764,-500.0,0.00041095,31]
[313621536,1707487159790,-1196.87,0.00041095,31]
[313621537,1707487159816,-528.54,0.00041095,31]
[313621538,1707487159842,-4162.47,0.00041095,31]
[313621539,1707487159866,-500.0,0.00041095,31]
[313621540,1707487159893,-2259.42,0.00041095,31]
[313621541,1707487159923,-500.0,0.00041095,31]
[313621542,1707487159951,-1066.85,0.00041095,31]
[313621543,1707487159977,-500.0,0.00041095,31]
[313621544,1707487160004,-560.83120168,0.00041095,31]
[313621545,1707487160040,-5424.04,0.00041095,31]
[313621546,1707487160068,-500.0,0.00041095,31]
[313621547,1707487160099,-500.0,0.00041095,31]
[313621548,1707487160127,-500.0,0.00041095,31]
[313621549,1707487160155,-1913.56,0.00041095,31]
[313621550,1707487160181,-500.0,0.00041095,31]
[313621551,1707487160210,-1793.82,0.00041095,31]
[313621552,1707487160238,-500.0,0.00041095,31]
[313621553,1707487160267,-500.0,0.00041095,31]
[313621554,1707487160295,-3060.13,0.00041095,31]
[313621555,1707487160323,-500.0,0.00041095,31]
[313621556,1707487160350,-500.0,0.00041095,31]
[313621557,1707487160380,-500.0,0.00041095,31]
[313621558,1707487160408,-500.0,0.00041095,31]
[313621559,1707487160437,-500.0,0.00041095,31]
[313621560,1707487160465,-1516.62,0.00041095,31]
[313621561,1707487160496,-5683.63,0.00041095,31]
[313621562,1707487160527,-1958.55,0.00041095,31]
[313621563,1707487160556,-652.08,0.00041095,31]
[313621564,1707487160585,-500.0,0.00041095,31]
[313621565,1707487160613,-500.0,0.00041095,31]
[313621566,1707487160645,-502.16,0.00041095,31]
[313621567,1707487160675,-2458.11,0.00041095,31]
[313621568,1707487160703,-512.31598821,0.00041095,31]
[313621569,1707487160732,-500.0,0.00041095,31]
[313621570,1707487160760,-907.73,0.00041095,31]
[313621571,1707487160786,-500.0,0.00041095,31]
[313621572,1707487160814,-4451.57,0.00041095,31]
[313621573,1707487160841,-500.0,0.00041095,31]
[313621574,1707487160873,-500.0,0.00041369,31]
[313621575,1707487160900,-712.89,0.00041369,31]
[313621576,1707487160926,-487.65283238,0.00041369,31]
[313621577,1707487160953,-500.0,0.00041369,31]
[313621578,1707487160980,-500.0,0.00041369,31]
[313621579,1707487161007,-500.0,0.00041369,31]
[313621580,1707487161034,-500.0,0.00041369,31]
[313621581,1707487161060,-500.0,0.00041369,31]
[313621582,1707487161088,-500.0,0.00041369,31]
[313621583,1707487161117,-500.0,0.00041369,31]
[313621584,1707487161144,-500.0,0.00041369,31]
[313621585,1707487161171,-500.0,0.00041369,31]
[313621586,1707487161200,-500.0,0.00041369,30]
[313621587,1707487161226,-500.0,0.00041369,31]
[313621588,1707487161253,-500.0,0.00041369,31]
[313621589,1707487161280,-500.0,0.00041369,31]
[313621590,1707487161308,-500.0,0.00041369,31]
[313621591,1707487161580,-500.0,0.00041369,31]
[313621592,1707487161613,-500.0,0.00041369,31]
[313621593,1707487161644,-500.0,0.00041369,31]
[313621594,1707487161673,-500.0,0.00041369,31]
[313621595,1707487161708,-511.43748984,0.00041369,31]
[313621596,1707487161737,-500.0,0.00041369,31]
[313621597,1707487161777,-500.0,0.00041369,31]